[Event "Mistrovství Čech mládeže 2023 - HD14"]
[Site "Harrachov, Czech Republic"]
[Date "2023.10.28"]
[Round "9.8"]
[White "Rudlof, Adam"]
[Black "Chernyy, Andrey"]
[Result "1-0"]
[TimeControl "90m + 30s"]
[WhiteElo "1639"]
[BlackElo "1655"]

1. e4 {[%clk 01:30:57]} c5 {[%clk 01:30:52]} {[%emt 00:00:09]} 2. Nf3 {[%clk
01:31:22]} {[%emt 00:00:05]} d6 {[%clk 01:31:14]} {[%emt 00:00:08]} 3. d4
{[%clk 01:31:44]} {[%emt 00:00:08]} cxd4 {[%clk 01:31:36]} {[%emt 00:00:08]} 4.
Nxd4 {[%clk 01:32:10]} {[%emt 00:00:05]} Nf6 {[%clk 01:31:46]} {[%emt
00:00:20]} 5. Nc3 {[%clk 01:32:35]} {[%emt 00:00:05]} g6 {[%clk 01:32:05]}
{[%emt 00:00:12]} 6. Be3 {[%clk 01:32:51]} {[%emt 00:00:14]} Bg7 {[%clk
01:32:19]} {[%emt 00:00:15]} 7. Bc4 {[%clk 01:33:08]} {[%emt 00:00:12]} O-O
{[%clk 01:32:21]} {[%emt 00:00:29]} 8. f3 {[%clk 01:32:48]} {[%emt 00:00:51]}
Nc6 {[%clk 01:32:16]} {[%emt 00:00:35]} 9. Bb3 {[%clk 01:32:28]} {[%emt
00:00:49]} Nxd4 {[%clk 01:31:23]} {[%emt 00:01:23]} 10. Bxd4 {[%clk 01:32:49]}
{[%emt 00:00:10]} Be6 {[%clk 01:30:06]} {[%emt 00:01:47]} 11. Bxe6 {[%clk
01:32:44]} {[%emt 00:00:35]} fxe6 {[%clk 01:30:33]} {[%emt 00:00:02]} 12. Qd2
{[%clk 01:32:24]} {[%emt 00:00:50]} a6 {[%clk 01:27:55]} {[%emt 00:03:08]} 13.
O-O-O {[%clk 01:31:48]} {[%emt 00:01:05]} Nd7 {[%clk 01:27:01]} {[%emt
00:01:24]} 14. Bxg7 {[%clk 01:31:14]} {[%emt 00:01:05]} Kxg7 {[%clk 01:27:29]}
{[%emt 00:00:02]} 15. h4 {[%clk 01:30:23]} {[%emt 00:01:20]} h6 {[%clk
01:25:54]} {[%emt 00:02:05]} 16. f4 {[%clk 01:19:04]} {[%emt 00:11:48]} e5
{[%clk 01:19:53]} {[%emt 00:06:32]} 17. g3 {[%clk 01:18:24]} {[%emt 00:01:09]}
b5 {[%clk 01:11:06]} {[%emt 00:09:18]} 18. h5 {[%clk 01:16:01]} {[%emt
00:02:52]} Qe8 {[%clk 01:04:19]} {[%emt 00:07:19]} 19. Nd5 {[%clk 01:14:25]}
{[%emt 00:02:06]} Rb8 {[%clk 00:57:10]} {[%emt 00:07:39]} 20. Nc7 {[%clk
01:13:39]} {[%emt 00:01:16]} Qf7 {[%clk 00:55:56]} {[%emt 00:01:44]} 21. hxg6
{[%clk 01:14:01]} {[%emt 00:00:09]} Qxa2 {[%clk 00:43:03]} {[%emt 00:13:23]} 22.
Ne6+ {[%clk 00:46:11]} {[%emt 00:28:20]} Kf6 {[%clk 00:39:53]} {[%emt
00:03:40]} 23. Qd5 {[%clk 00:45:53]} {[%emt 00:00:48]} Qxd5 {[%clk 00:34:24]}
{[%emt 00:06:00]} 24. exd5 {[%clk 00:46:16]} {[%emt 00:00:07]} Rg8 {[%clk
00:29:40]} {[%emt 00:05:14]} 25. g7 {[%clk 00:45:07]} {[%emt 00:01:39]} Kg6
{[%clk 00:28:27]} {[%emt 00:01:40]} 26. Rdf1 {[%clk 00:35:42]} {[%emt
00:09:57]} exf4 {[%clk 00:24:06]} {[%emt 00:04:53]} 27. gxf4 {[%clk 00:36:01]}
{[%emt 00:00:11]} Nf6 {[%clk 00:22:35]} {[%emt 00:01:59]} 28. f5+ {[%clk
00:35:41]} {[%emt 00:00:52]} Kf7 {[%clk 00:22:04]} {[%emt 00:00:50]} 29. Rxh6
{[%clk 00:25:45]} {[%emt 00:10:36]} Nxd5 {[%clk 00:19:32]} {[%emt 00:03:02]} 30.
Kd2 {[%clk 00:20:13]} {[%emt 00:06:01]} a5 {[%clk 00:13:53]} {[%emt 00:06:11]}
31. Re1 {[%clk 00:12:48]} {[%emt 00:07:47]} Rbc8 {[%clk 00:11:11]} {[%emt
00:03:20]} 32. Rg6 {[%clk 00:11:46]} {[%emt 00:01:28]} Ke8 {[%clk 00:08:39]}
{[%emt 00:03:06]} 33. Nd4 {[%clk 00:08:09]} {[%emt 00:04:03]} Kf7 {[%clk
00:07:14]} {[%emt 00:01:59]} 34. Ne6 {[%clk 00:04:41]} {[%emt 00:03:58]} Ke8
{[%clk 00:07:28]} {[%emt 00:00:16]} 35. Rh1 {[%clk 00:04:18]} {[%emt 00:00:54]}
Kf7 {[%clk 00:03:44]} {[%emt 00:04:14]} 36. Ng5+ {[%clk 00:03:49]} {[%emt
00:00:59]} Ke8 {[%clk 00:03:44]} {[%emt 00:00:28]} 37. Rh8 {[%clk 00:02:58]}
{[%emt 00:01:22]} Kd7 {[%clk 00:03:35]} {[%emt 00:00:39]} 38. Rxg8 {[%clk
00:03:06]} {[%emt 00:00:22]} Rxg8 {[%clk 00:03:39]} {[%emt 00:00:26]} 39. Nf7
{[%clk 00:03:27]} {[%emt 00:00:09]} Nf4 {[%clk 00:03:21]} {[%emt 00:00:46]} 40.
Rg5 {[%clk 00:03:27]} {[%emt 00:00:28]} Nh5 {[%clk 00:02:18]} {[%emt 00:01:38]}
41. Rxh5 {[%clk 00:02:43]} {[%emt 00:01:14]} Rxg7 {[%clk 00:02:45]} {[%emt
00:00:03]} 42. Ng5 {[%clk 00:02:58]} {[%emt 00:00:15]} Rg8 {[%clk 00:03:00]}
{[%emt 00:00:15]} 43. Kd3 {[%clk 00:02:56]} {[%emt 00:00:32]} Rf8 {[%clk
00:03:07]} {[%emt 00:00:22]} 44. Ne6 {[%clk 00:02:14]} {[%emt 00:01:10]} Rg8
{[%clk 00:03:28]} {[%emt 00:00:12]} 45. Nd4 {[%clk 00:01:58]} {[%emt 00:00:47]}
Rg3+ {[%clk 00:03:32]} {[%emt 00:00:26]} 46. Ke4 {[%clk 00:02:03]} {[%emt
00:00:25]} b4 {[%clk 00:02:47]} {[%emt 00:01:15]} 47. Rh8 {[%clk 00:01:15]}
{[%emt 00:01:17]} a4 {[%clk 00:02:34]} {[%emt 00:00:43]} 48. Rb8 {[%clk
00:00:57]} {[%emt 00:00:49]} a3 {[%clk 00:02:41]} {[%emt 00:00:23]} 49. Rxb4
{[%clk 00:01:06]} {[%emt 00:00:20]} Rg4+ {[%clk 00:02:18]} {[%emt 00:00:52]} 50.
Kd5 {[%clk 00:01:18]} {[%emt 00:00:19]} axb2 {[%clk 00:02:26]} {[%emt
00:00:22]} 51. Rxb2 {[%clk 00:01:43]} {[%emt 00:00:05]} Rg5 {[%clk 00:02:44]}
{[%emt 00:00:11]} 52. Rb7+ {[%clk 00:01:45]} {[%emt 00:00:29]} Ke8 {[%clk
00:03:09]} {[%emt 00:00:05]} 53. Ke6 {[%clk 00:01:52]} {[%emt 00:00:22]} Kf8
{[%clk 00:03:25]} {[%emt 00:00:13]} 54. Rxe7 {[%clk 00:01:56]} {[%emt
00:00:29]} Rg1 {[%clk 00:03:31]} {[%emt 00:00:23]} 55. Kxd6 {[%clk 00:01:55]}
{[%emt 00:00:32]} Rd1 {[%clk 00:03:52]} {[%emt 00:00:09]} 56. Re4 {[%clk
00:02:21]} {[%emt 00:00:04]} Kf7 {[%clk 00:04:11]} {[%emt 00:00:10]} 57. c4
{[%clk 00:02:42]} {[%emt 00:00:10]} Ra1 {[%clk 00:04:27]} {[%emt 00:00:14]} 58.
c5 {[%clk 00:02:56]} {[%emt 00:00:16]} Ra8 {[%clk 00:04:40]} {[%emt 00:00:17]}
59. c6 {[%clk 00:03:13]} {[%emt 00:00:13]} Ra7 {[%clk 00:04:49]} {[%emt
00:00:21]} 60. c7 {[%clk 00:03:29]} {[%emt 00:00:14]} 1-0

[Event "Mistrovství Čech mládeže 2023 - HD14"]
[Site "Harrachov, Czech Republic"]
[Date "2023.10.28"]
[Round "9.9"]
[White "Kammová, Kateřina"]
[Black "Stefaniv, Vladislav"]
[Result "1/2-1/2"]
[TimeControl "90m + 30s"]
[WhiteElo "1543"]
[BlackElo "1566"]

1. e4 {[%clk 01:30:55]} {[%emt 00:00:05]} c6 {[%clk 01:30:53]} {[%emt
00:00:08]} 2. Nc3 {[%clk 01:30:24]} {[%emt 00:01:01]} d5 {[%clk 01:31:12]}
{[%emt 00:00:11]} 3. Qf3 {[%clk 01:29:39]} {[%emt 00:01:15]} dxe4 {[%clk
01:31:10]} {[%emt 00:00:32]} 4. Nxe4 {[%clk 01:29:30]} {[%emt 00:00:39]} Nf6
{[%clk 01:30:56]} {[%emt 00:00:43]} 5. Bc4 {[%clk 01:28:31]} {[%emt 00:01:29]}
Nbd7 {[%clk 01:29:54]} {[%emt 00:01:33]} 6. Qe2 {[%clk 01:16:24]} {[%emt
00:12:37]} Nxe4 {[%clk 01:29:34]} {[%emt 00:00:50]} 7. Qxe4 {[%clk 01:16:44]}
{[%emt 00:00:10]} Nf6 {[%clk 01:29:26]} {[%emt 00:00:38]} 8. Qe2 {[%clk
01:16:26]} {[%emt 00:00:48]} Bg4 {[%clk 01:19:36]} {[%emt 00:10:20]} 9. Nf3
{[%clk 01:14:58]} {[%emt 00:01:57]} e6 {[%clk 01:19:35]} {[%emt 00:00:31]} 10.
c3 {[%clk 01:13:18]} {[%emt 00:02:10]} Be7 {[%clk 01:16:10]} {[%emt 00:03:56]}
11. d4 {[%clk 01:10:04]} {[%emt 00:03:43]} Qc7 {[%clk 01:12:31]} {[%emt
00:04:09]} 12. Bg5 {[%clk 01:08:30]} {[%emt 00:02:04]} O-O {[%clk 01:09:45]}
{[%emt 00:03:16]} 13. O-O {[%clk 01:07:41]} {[%emt 00:01:18]} Nd5 {[%clk
00:58:24]} {[%emt 00:11:52]} 14. Bxe7 {[%clk 01:07:21]} {[%emt 00:00:50]}
1/2-1/2

[Event "Mistrovství Čech mládeže 2023 - HD14"]
[Site "Harrachov, Czech Republic"]
[Date "2023.10.28"]
[Round "9.10"]
[White "Chon, Jeremy"]
[Black "Pásek, Josef"]
[Result "1-0"]
[TimeControl "90m + 30s"]
[WhiteElo "1538"]
[BlackElo "1555"]

1. Nf3 {[%clk 01:30:59]} d5 {[%emt 00:00:46]} 2. d4 e6 {[%clk 01:30:33]} {[%emt
00:00:11]} 3. Bf4 {[%clk 01:31:50]} {[%emt 00:00:10]} Bd6 {[%clk 01:30:32]}
{[%emt 00:00:31]} 4. Bg3 {[%clk 01:32:14]} {[%emt 00:00:07]} c6 {[%clk
01:28:53]} {[%emt 00:02:08]} 5. e3 {[%clk 01:32:36]} {[%emt 00:00:08]} f5
{[%clk 01:24:28]} {[%emt 00:04:54]} 6. c4 {[%clk 01:24:48]} {[%emt 00:08:19]}
Nf6 {[%clk 01:23:38]} {[%emt 00:01:19]} 7. Bd3 {[%clk 01:19:26]} {[%emt
00:05:52]} Ne4 {[%clk 01:21:07]} {[%emt 00:03:01]} 8. Bxd6 {[%clk 01:15:29]}
{[%emt 00:04:28]} Qxd6 {[%clk 01:18:44]} {[%emt 00:02:52]} 9. Nc3 {[%clk
01:08:54]} {[%emt 00:07:04]} O-O {[%clk 01:18:02]} {[%emt 00:01:12]} 10. O-O
{[%clk 01:02:58]} {[%emt 00:06:26]} Nd7 {[%clk 01:16:43]} {[%emt 00:01:49]} 11.
Rc1 {[%clk 00:57:24]} {[%emt 00:06:04]} b6 {[%clk 00:53:22]} {[%emt 00:23:51]}
12. Qb3 {[%clk 00:44:07]} {[%emt 00:13:47]} Kh8 {[%clk 00:50:12]} {[%emt
00:03:40]} 13. Rfd1 {[%clk 00:41:49]} {[%emt 00:02:48]} g6 {[%clk 00:30:23]}
{[%emt 00:20:19]} 14. Ne2 {[%clk 00:37:26]} {[%emt 00:04:54]} Rb8 {[%clk
00:15:35]} {[%emt 00:15:18]} 15. Rc2 {[%clk 00:28:16]} {[%emt 00:09:40]} Bb7
{[%clk 00:15:19]} {[%emt 00:00:45]} 16. cxd5 {[%clk 00:20:31]} {[%emt
00:08:15]} cxd5 {[%clk 00:09:28]} {[%emt 00:06:21]} 17. Nc3 {[%clk 00:19:11]}
{[%emt 00:01:50]} Nxc3 {[%clk 00:09:12]} {[%emt 00:00:46]} 18. bxc3 {[%clk
00:18:50]} {[%emt 00:00:51]} Rfc8 {[%clk 00:06:50]} {[%emt 00:02:51]} 19. Be2
{[%clk 00:17:50]} {[%emt 00:01:30]} Bc6 {[%clk 00:04:29]} {[%emt 00:02:51]} 20.
Bb5 {[%clk 00:15:03]} {[%emt 00:03:17]} Bxb5 {[%clk 00:03:07]} {[%emt
00:01:53]} 21. Qxb5 {[%clk 00:15:32]} Ra8 {[%clk 00:02:04]} {[%emt 00:01:32]}
22. Rdc1 {[%clk 00:13:41]} {[%emt 00:02:21]} a6 {[%clk 00:02:20]} {[%emt
00:00:15]} 23. Qb4 {[%clk 00:13:40]} {[%emt 00:00:31]} Qxb4 {[%clk 00:00:42]}
{[%emt 00:02:08]} 24. cxb4 {[%clk 00:14:09]} {[%emt 00:00:01]} Rxc2 {[%clk
00:01:10]} {[%emt 00:00:02]} 25. Rxc2 {[%clk 00:14:33]} {[%emt 00:00:05]} a5
{[%clk 00:01:08]} {[%emt 00:00:32]} 26. b5 {[%clk 00:14:16]} {[%emt 00:00:47]}
Kg8 {[%clk 00:00:37]} {[%emt 00:01:01]} 27. Rc6 {[%clk 00:12:35]} {[%emt
00:02:11]} Re8 {[%clk 00:00:47]} {[%emt 00:00:20]} 28. Ng5 {[%clk 00:05:01]}
{[%emt 00:08:04]} e5 {[%clk 00:01:00]} {[%emt 00:00:17]} 29. Rd6 {[%clk
00:04:34]} {[%emt 00:00:57]} Re7 {[%clk 00:00:55]} {[%emt 00:00:35]} 30. Rxd5
{[%clk 00:04:06]} {[%emt 00:00:58]} exd4 {[%clk 00:01:15]} {[%emt 00:00:09]} 31.
Rxd4 {[%clk 00:04:33]} {[%emt 00:00:04]} h6 {[%clk 00:00:38]} {[%emt 00:01:08]}
32. Nf3 {[%clk 00:04:47]} {[%emt 00:00:15]} Nc5 {[%clk 00:00:55]} {[%emt
00:00:13]} 33. Rd8+ {[%clk 00:01:32]} {[%emt 00:03:45]} Kf7 {[%clk 00:01:02]}
{[%emt 00:00:23]} 34. g3 {[%clk 00:00:53]} {[%emt 00:01:09]} Na4 {[%clk
00:00:45]} {[%emt 00:00:47]} 35. Nd4 {[%clk 00:00:56]} {[%emt 00:00:27]} Nc3
{[%clk 00:00:54]} {[%emt 00:00:21]} 36. Rb8 {[%clk 00:00:59]} {[%emt 00:00:28]}
Nxa2 {[%clk 00:00:54]} {[%emt 00:00:30]} 37. Rxb6 {[%clk 00:01:27]} {[%emt
00:00:02]} Nc3 {[%clk 00:01:13]} {[%emt 00:00:10]} 38. Rc6 {[%clk 00:01:27]}
{[%emt 00:00:31]} Nd5 {[%clk 00:01:30]} {[%emt 00:00:13]} 39. Ra6 {[%clk
00:01:40]} {[%emt 00:00:17]} Rb7 {[%clk 00:01:16]} {[%emt 00:00:43]} 40. Rxa5
{[%clk 00:02:02]} {[%emt 00:00:09]} Nc3 {[%clk 00:01:04]} {[%emt 00:00:42]} 41.
Kf1 {[%clk 00:01:49]} {[%emt 00:00:43]} Ke7 {[%clk 00:00:54]} {[%emt 00:00:39]}
42. Ke1 {[%clk 00:01:04]} {[%emt 00:01:15]} Kf7 {[%clk 00:00:47]} {[%emt
00:00:38]} 43. f3 {[%clk 00:00:40]} {[%emt 00:00:54]} 1-0

[Event "Mistrovství Čech mládeže 2023 - HD14"]
[Site "Harrachov, Czech Republic"]
[Date "2023.10.28"]
[Round "9.11"]
[White "Kravchenko, Andrey"]
[Black "Bludský, Hynek"]
[Result "1-0"]
[TimeControl "90m + 30s"]
[WhiteElo "1541"]
[BlackElo "1547"]

1. c4 {[%clk 01:30:58]} e5 {[%clk 01:30:52]} {[%emt 00:00:09]} 2. Nc3 {[%clk
01:30:48]} {[%emt 00:00:40]} Nf6 {[%clk 01:31:16]} {[%emt 00:00:05]} 3. Nf3
{[%clk 01:30:43]} {[%emt 00:00:35]} Nc6 {[%clk 01:31:40]} {[%emt 00:00:06]} 4.
d4 {[%clk 01:30:57]} {[%emt 00:00:16]} exd4 {[%clk 01:30:13]} {[%emt 00:01:58]}
5. Nxd4 {[%clk 01:31:21]} {[%emt 00:00:05]} d6 {[%clk 01:29:26]} {[%emt
00:01:18]} 6. e4 {[%clk 01:31:00]} {[%emt 00:00:51]} g6 {[%clk 01:28:31]}
{[%emt 00:01:25]} 7. Be2 {[%clk 01:30:45]} {[%emt 00:00:44]} Bg7 {[%clk
01:28:39]} {[%emt 00:00:22]} 8. Be3 {[%clk 01:30:26]} {[%emt 00:00:49]} O-O
{[%clk 01:28:53]} {[%emt 00:00:16]} 9. O-O {[%clk 01:30:47]} {[%emt 00:00:09]}
Bd7 {[%clk 01:28:53]} {[%emt 00:00:30]} 10. f3 {[%clk 01:30:39]} {[%emt
00:00:38]} Re8 {[%clk 01:28:25]} {[%emt 00:00:58]} 11. Rc1 {[%clk 01:28:36]}
{[%emt 00:02:33]} Nxd4 {[%clk 01:28:06]} {[%emt 00:00:49]} 12. Bxd4 {[%clk
01:27:56]} {[%emt 00:01:09]} Bc6 {[%clk 01:28:22]} {[%emt 00:00:14]} 13. Qd2
{[%clk 01:22:28]} {[%emt 00:05:56]} a5 {[%clk 01:26:58]} {[%emt 00:01:56]} 14.
b3 {[%clk 01:22:45]} {[%emt 00:00:13]} Nd7 {[%clk 01:26:41]} {[%emt 00:00:47]}
15. Bxg7 {[%clk 01:14:03]} {[%emt 00:09:12]} Kxg7 {[%clk 01:27:03]} {[%emt
00:00:09]} 16. Rb1 {[%clk 01:09:34]} {[%emt 00:04:59]} Nc5 {[%clk 01:25:15]}
{[%emt 00:02:18]} 17. Rfc1 {[%clk 01:07:19]} {[%emt 00:02:43]} Qf6 {[%clk
01:24:30]} {[%emt 00:01:15]} 18. Bd1 {[%clk 00:59:32]} {[%emt 00:08:17]} Qe5
{[%clk 01:18:55]} {[%emt 00:06:06]} 19. Bc2 {[%clk 00:56:39]} {[%emt 00:03:22]}
Ra7 {[%clk 01:07:51]} {[%emt 00:11:34]} 20. a3 {[%clk 00:49:56]} {[%emt
00:07:14]} Ne6 {[%clk 01:06:02]} {[%emt 00:02:19]} 21. Kh1 {[%clk 00:38:50]}
{[%emt 00:11:34]} Qd4 {[%clk 01:02:52]} {[%emt 00:03:41]} 22. Rd1 {[%clk
00:35:13]} {[%emt 00:04:07]} Qxd2 {[%clk 01:02:53]} {[%emt 00:00:29]} 23. Rxd2
{[%clk 00:35:38]} {[%emt 00:00:06]} Rb8 {[%clk 01:02:11]} {[%emt 00:01:12]} 24.
a4 {[%clk 00:28:48]} {[%emt 00:07:19]} Nc5 {[%clk 01:01:06]} {[%emt 00:01:36]}
25. Nd5 {[%clk 00:25:18]} {[%emt 00:04:01]} Bxd5 {[%clk 01:01:17]} {[%emt
00:00:19]} 26. exd5 {[%clk 00:25:41]} {[%emt 00:00:06]} Re8 {[%clk 01:00:53]}
{[%emt 00:00:54]} 27. Kg1 {[%clk 00:19:36]} {[%emt 00:06:35]} Re3 {[%clk
00:58:51]} {[%emt 00:02:32]} 28. Kf2 {[%clk 00:19:14]} {[%emt 00:00:52]} Rc3
{[%clk 00:59:13]} {[%emt 00:00:09]} 29. Re2 {[%clk 00:12:55]} {[%emt 00:06:48]}
Nd3+ {[%clk 00:52:59]} {[%emt 00:06:44]} 30. Bxd3 {[%clk 00:12:26]} {[%emt
00:01:00]} Rxd3 {[%clk 00:53:20]} {[%emt 00:00:09]} 31. Re7 {[%clk 00:12:45]}
{[%emt 00:00:11]} Rd2+ {[%clk 00:52:33]} {[%emt 00:01:17]} 32. Kg3 {[%clk
00:13:04]} {[%emt 00:00:11]} b6 {[%clk 00:51:23]} {[%emt 00:01:40]} 33. Rd7
{[%clk 00:12:59]} {[%emt 00:00:33]} Rd3 {[%clk 00:48:03]} {[%emt 00:03:52]} 34.
Re1 {[%clk 00:11:48]} {[%emt 00:01:41]} Ra8 {[%clk 00:47:42]} {[%emt 00:00:51]}
35. Ree7 {[%clk 00:11:43]} {[%emt 00:00:36]} Rf8 {[%clk 00:48:01]} {[%emt
00:00:10]} 36. Rxc7 {[%clk 00:12:01]} {[%emt 00:00:13]} Rxb3 {[%clk 00:48:08]}
{[%emt 00:00:22]} 37. Red7 {[%clk 00:11:37]} {[%emt 00:00:54]} h5 {[%clk
00:45:09]} {[%emt 00:03:29]} 38. h4 {[%clk 00:10:58]} {[%emt 00:01:10]} Kf6
{[%clk 00:42:16]} {[%emt 00:03:24]} 39. Rxd6+ {[%clk 00:10:33]} {[%emt
00:00:54]} Ke5 {[%clk 00:42:07]} {[%emt 00:00:38]} 40. Rdc6 {[%clk 00:10:08]}
{[%emt 00:00:52]} g5 {[%clk 00:39:10]} {[%emt 00:03:31]} 41. Re7+ {[%clk
00:09:31]} {[%emt 00:01:07]} Kf5 {[%clk 00:38:16]} {[%emt 00:01:24]} 42. hxg5
{[%clk 00:09:18]} {[%emt 00:00:43]} Kxg5 {[%clk 00:37:09]} {[%emt 00:01:37]} 43.
Re5+ {[%clk 00:09:06]} {[%emt 00:00:41]} f5 {[%clk 00:37:23]} {[%emt 00:00:17]}
44. d6 {[%clk 00:09:03]} {[%emt 00:00:33]} h4+ {[%clk 00:36:59]} {[%emt
00:00:55]} 45. Kh2 {[%clk 00:07:42]} {[%emt 00:01:50]} Kf4 {[%clk 00:36:49]}
{[%emt 00:00:40]} 46. Re2 {[%clk 00:06:37]} {[%emt 00:01:34]} Rd3 {[%clk
00:35:39]} {[%emt 00:01:41]} 47. Rxb6 {[%clk 00:05:36]} {[%emt 00:01:31]} h3
{[%clk 00:35:24]} {[%emt 00:00:45]} 48. c5 {[%clk 00:02:33]} {[%emt 00:03:34]}
hxg2 {[%clk 00:34:42]} {[%emt 00:01:11]} 49. Kxg2 {[%clk 00:02:19]} {[%emt
00:00:44]} Rxf3 {[%clk 00:35:04]} {[%emt 00:00:08]} 50. Rf2 {[%clk 00:02:14]}
{[%emt 00:00:35]} Rxf2+ {[%clk 00:34:03]} {[%emt 00:01:31]} 51. Kxf2 {[%clk
00:02:40]} {[%emt 00:00:04]} Ke5 {[%clk 00:33:37]} {[%emt 00:00:55]} 52. Rb5
{[%clk 00:02:28]} {[%emt 00:00:42]} Ra8 {[%clk 00:32:29]} {[%emt 00:01:39]} 53.
Rb7 {[%clk 00:02:36]} {[%emt 00:00:21]} Kd5 {[%clk 00:31:07]} {[%emt 00:01:53]}
54. Rc7 {[%clk 00:01:53]} {[%emt 00:01:12]} Rd8 {[%clk 00:24:30]} {[%emt
00:07:07]} 55. d7 {[%clk 00:02:06]} {[%emt 00:00:17]} 1-0

[Event "Mistrovství Čech mládeže 2023 - HD14"]
[Site "Harrachov, Czech Republic"]
[Date "2023.10.28"]
[Round "9.12"]
[White "Mikulka, Martin Michael"]
[Black "Tejnor, Martin"]
[Result "1/2-1/2"]
[TimeControl "90m + 30s"]
[WhiteElo "1826"]
[BlackElo "1418"]

1. e4 {[%clk 01:30:57]} {[%emt 00:00:02]} c5 {[%clk 01:30:59]} {[%emt
00:00:02]} 2. Nf3 {[%clk 01:31:19]} {[%emt 00:00:08]} Nc6 {[%clk 01:31:12]}
{[%emt 00:00:17]} 3. d4 {[%clk 01:31:40]} {[%emt 00:00:08]} cxd4 {[%clk
01:31:38]} {[%emt 00:00:05]} 4. Nxd4 {[%clk 01:32:03]} {[%emt 00:00:08]} Nf6
{[%clk 01:31:53]} {[%emt 00:00:14]} 5. Nc3 {[%clk 01:32:21]} {[%emt 00:00:12]}
e6 {[%clk 01:32:04]} {[%emt 00:00:20]} 6. Ndb5 {[%clk 01:32:44]} {[%emt
00:00:06]} d6 {[%clk 01:31:54]} {[%emt 00:00:39]} 7. Bf4 {[%clk 01:33:01]}
{[%emt 00:00:13]} e5 {[%clk 01:31:51]} {[%emt 00:00:33]} 8. Bg5 {[%clk
01:33:25]} {[%emt 00:00:06]} a6 {[%clk 01:31:59]} {[%emt 00:00:23]} 9. Na3
{[%clk 01:31:56]} {[%emt 00:01:58]} Be7 {[%clk 01:30:46]} {[%emt 00:01:42]} 10.
Bxf6 {[%clk 01:32:11]} {[%emt 00:00:16]} Bxf6 {[%clk 01:30:09]} {[%emt
00:01:07]} 11. Nc4 {[%clk 01:28:58]} {[%emt 00:03:44]} Be7 {[%clk 01:28:36]}
{[%emt 00:02:02]} 12. Nd5 {[%clk 01:28:08]} {[%emt 00:01:20]} Be6 {[%clk
01:28:33]} {[%emt 00:00:34]} 13. Nxe7 {[%clk 01:26:46]} {[%emt 00:01:52]} Kxe7
{[%clk 01:28:31]} {[%emt 00:00:32]} 14. c3 {[%clk 01:22:23]} {[%emt 00:04:54]}
Qc7 {[%clk 01:27:28]} {[%emt 00:01:32]} 15. Ne3 {[%clk 01:21:12]} {[%emt
00:01:41]} Rhd8 {[%clk 01:26:15]} {[%emt 00:01:43]} 16. Be2 {[%clk 01:14:03]}
{[%emt 00:07:39]} Kf8 {[%clk 01:22:20]} {[%emt 00:04:24]} 17. O-O {[%clk
01:11:37]} {[%emt 00:02:57]} Rac8 {[%clk 01:16:51]} {[%emt 00:05:59]} 18. Kh1
{[%clk 01:09:26]} {[%emt 00:02:40]} Ne7 {[%clk 01:15:39]} {[%emt 00:01:43]} 19.
Nd5 {[%clk 01:07:50]} {[%emt 00:02:07]} Qc6 {[%clk 01:14:22]} {[%emt 00:01:47]}
20. Bg4 {[%clk 00:59:06]} {[%emt 00:09:13]} Nxd5 {[%clk 01:09:16]} {[%emt
00:05:35]} 21. exd5 {[%clk 00:58:33]} {[%emt 00:01:05]} Bxg4 {[%clk 01:08:44]}
{[%emt 00:01:02]} 22. dxc6 {[%clk 00:58:52]} {[%emt 00:00:12]} Bxd1 {[%clk
01:09:00]} {[%emt 00:00:13]} 23. cxb7 {[%clk 00:59:13]} {[%emt 00:00:09]} Rb8
{[%clk 01:09:26]} {[%emt 00:00:05]} 24. Raxd1 {[%clk 00:56:53]} {[%emt
00:02:49]} Rxb7 {[%clk 01:09:44]} {[%emt 00:00:12]} 25. Rd2 {[%clk 00:57:06]}
{[%emt 00:00:18]} Ke7 {[%clk 01:09:58]} {[%emt 00:00:16]} 26. Rfd1 {[%clk
00:56:01]} {[%emt 00:01:34]} Ke6 {[%clk 01:09:00]} {[%emt 00:01:28]} 27. Kg1
{[%clk 00:55:52]} {[%emt 00:00:39]} d5 {[%clk 01:06:49]} {[%emt 00:02:42]} 28.
f3 {[%clk 00:54:14]} {[%emt 00:02:08]} f6 {[%clk 01:05:10]} {[%emt 00:02:09]}
29. Kf2 {[%clk 00:53:57]} {[%emt 00:00:46]} Rd6 {[%clk 00:59:46]} {[%emt
00:05:55]} 30. Ke3 {[%clk 00:51:31]} {[%emt 00:02:56]} Rd8 {[%clk 00:50:16]}
{[%emt 00:09:59]} 31. f4 {[%clk 00:48:35]} {[%emt 00:03:26]} Rbd7 {[%clk
00:46:20]} {[%emt 00:04:27]} 32. g4 {[%clk 00:46:28]} {[%emt 00:02:37]} h6
{[%clk 00:43:18]} {[%emt 00:03:32]} 33. f5+ {[%clk 00:43:37]} {[%emt 00:03:21]}
Ke7 {[%clk 00:42:02]} {[%emt 00:01:46]} 34. a4 {[%clk 00:41:56]} {[%emt
00:02:10]} Rd6 {[%clk 00:42:08]} {[%emt 00:00:24]} 35. h3 {[%clk 00:32:17]}
{[%emt 00:10:09]} 1/2-1/2